bitfinex/quotes_ETHUSD_20241116
["timestamp","ask_amount","ask_price","bid_price","bid_amount"]
[1731769237551,0.55,3168.7,3168.1,3.11845]
[1731769237752,0.55,3168.5,3167.9,3.15665]
[1731769237982,0.55,3168.5,3168.0,0.3472325]
[1731769238579,3.15598,3168.6,3168.0,0.3472325]
[1731769238580,3.15594,3168.7,3168.0,0.3472325]
[1731769238737,0.55,3168.6,3168.0,0.3472325]
[1731769238938,0.55,3168.6,3168.1,0.35038325]
[1731769239340,3.70547,3169.1,3168.1,0.35038325]
[1731769239639,0.55,3168.4,3167.8,3.472365]
[1731769239962,0.55,3168.5,3167.8,3.472365]
[1731769240168,0.55,3168.3,3167.8,3.472365]
[1731769240535,3.15607,3168.5,3167.9,3.15666]
[1731769240788,0.55,3168.4,3167.8,0.315675]
[1731769240940,0.55,3168.5,3167.8,0.315675]
[1731769241139,0.55,3168.5,3167.9,3.15665]
[1731769241343,0.55,3168.7,3167.9,3.15665]
[1731769241544,3.15538,3169.2,3168.2,3.15631]
[1731769241742,3.15555,3169.1,3168.4,3.15608]
[1731769242071,3.15604,3168.6,3167.9,3.15666]
[1731769242385,3.15604,3168.6,3168.0,3.15654]
[1731769242575,3.15581,3168.8,3168.1,3.15645]
[1731769242891,3.15581,3168.8,3168.1,3.472095]
[1731769242892,0.55,3168.7,3168.1,3.472095]
[1731769243047,0.55,3168.7,3168.1,0.315645]
[1731769243395,0.55,3168.5,3168.1,0.315645]
[1731769243549,0.55,3168.6,3168.0,3.15652]
[1731769244266,3.77994783,3170.1,3167.8,3.15674]
[1731769244267,0.55,3168.3,3167.8,3.15674]
[1731769244591,0.55,3168.3,3167.6,4.09683191]
[1731769244758,3.70628,3168.3,3167.7,0.40968319]
[1731769244943,0.55,3168.3,3167.7,3.56651319]
[1731769245170,3.70614,3168.5,3167.7,0.40968319]
[1731769245399,3.15633,3168.3,3167.7,0.40968319]
[1731769245604,3.15633,3168.3,3167.6,4.09683191]
[1731769245605,0.55,3167.8,3167.6,0.62457191]
[1731769245817,0.55,3167.8,3167.1,3.15743]
[1731769245818,3.70677,3167.8,3167.1,3.15743]
[1731769245972,0.55,3167.8,3167.2,0.347273]
[1731769246173,3.15713,3167.5,3166.8,3.15776]
[1731769246391,3.15713,3167.5,3166.3,0.49409226]
[1731769246392,0.55,3167.4,3166.9,3.80268303]
[1731769246715,3.70716,3167.4,3166.8,0.3153]
[1731769247008,3.70703,3167.6,3166.9,3.504905]
[1731769247324,0.55,3167.4,3166.9,3.504905]
[1731769247808,0.55,3167.6,3167.0,3.15751]
[1731769248107,0.55,3167.5,3166.9,3.504905]
[1731769248307,3.70706,3167.5,3167.0,0.3504905]
[1731769248514,3.70706,3167.5,3166.8,0.64168827]
[1731769249112,0.55,3167.0,3166.3,3.65234226]
[1731769249270,4.078349,3167.0,3166.6,0.64282423]
[1731769249486,0.55,3167.0,3166.6,0.64282423]
[1731769250217,0.55,3167.1,3166.6,0.64282423]
[1731769250381,3.70749,3167.1,3166.6,0.64282423]
[1731769250707,3.70749,3167.1,3166.4,3.1581]
[1731769251090,3.15757,3167.0,3166.4,3.1581]
[1731769251273,3.15757,3167.0,3166.5,0.36521923]
[1731769252483,0.55,3167.4,3166.7,3.15776]
[1731769252700,0.55,3167.4,3166.8,0.06314679]
[1731769252897,0.55,3167.4,3166.8,3.15775]
[1731769253103,3.15698,3167.6,3166.9,3.15761]
[1731769253499,3.15708,3167.5,3166.9,3.15761]
[1731769254026,3.15687,3167.7,3166.5,0.36521923]
[1731769254027,3.15763,3167.0,3166.5,0.36521923]
[1731769254243,3.15742,3167.2,3166.3,0.49409226]
[1731769254394,0.55,3167.2,3166.6,3.15794]
[1731769254918,0.55,3167.2,3166.7,0.06314991]
[1731769255086,0.55,3167.3,3166.4,3.79613497]
[1731769255428,0.55,3167.0,3166.5,0.42902272]
[1731769256195,3.70757,3167.0,3166.5,0.42902272]
[1731769256417,3.65757,3167.0,3166.5,0.42902272]
[1731769257518,3.15747,3167.1,3166.4,3.65228722]
[1731769257837,3.15756,3167.0,3166.4,3.65228722]
[1731769257993,3.15782,3166.8,3166.4,0.49414722]
[1731769258288,0.55,3166.6,3166.4,0.49414722]
[1731769258691,3.15766,3166.9,3166.4,0.49414722]
[1731769258692,0.55,3166.8,3166.4,0.49414722]
[1731769258899,0.55,3166.8,3166.4,0.98500934]
[1731769259129,3.15745,3167.2,3166.4,4.14315934]
[1731769259130,0.55,3167.1,3166.4,4.14315934]
[1731769259308,3.70746,3167.1,3166.4,0.55730319]
[1731769259527,0.55,3166.7,3166.4,0.49414722]
[1731769260356,3.70761,3167.0,3166.4,0.92185837]
[1731769260626,3.70776,3166.8,3166.2,0.6246843]
[1731769260942,3.70797,3166.6,3166.4,0.4941853]
[1731769261271,0.01,3167.7,3166.4,0.4941853]
[1731769261272,0.01,3168.7,3166.4,0.4941853]
[1731769261472,8.92,3169.0,3166.8,3.03110125]
[1731769261473,3.15601,3168.6,3166.8,3.03110125]
[1731769261770,3.03110125,3168.9,3167.5,3.15705]
[1731769261771,3.15613,3168.5,3167.5,3.15705]
[1731769261974,3.15598,3168.6,3167.9,3.15666]
[1731769262129,3.15598,3168.6,3167.8,3.15674]
[1731769262477,3.15578,3168.8,3168.1,3.15638]
[1731769262671,3.15624,3168.4,3167.6,3.15688]
[1731769262832,3.15624,3168.4,3167.7,3.15684]
[1731769263034,3.15638,3168.2,3167.5,3.15699]
[1731769263269,3.03110125,3168.9,3167.6,3.472639]
[1731769263444,3.03110125,3168.9,3167.7,3.15684]
[1731769263645,3.15576,3168.8,3167.8,3.15673]
[1731769263914,3.15563,3169.0,3167.7,3.15686]
[1731769264058,3.15563,3169.0,3168.3,3.15621]
[1731769264355,3.15543,3169.2,3168.5,3.15604]
[1731769264356,3.15537,3169.2,3168.5,3.15604]
[1731769264560,3.15547,3169.1,3168.3,3.15625]
[1731769264756,3.15552,3169.1,3168.5,3.15606]
[1731769264961,3.15537,3169.2,3168.5,3.15606]
[1731769265574,3.70548,3169.1,3168.4,3.471765]
[1731769266648,3.65548,3169.1,3168.4,3.471765]
[1731769266988,3.15567,3168.9,3168.5,0.3471765]
[1731769267282,3.15567,3168.9,3168.4,0.315625]
[1731769267631,6.81103,3169.1,3168.4,0.315625]
[1731769268056,3.15558,3169.0,3168.4,0.315625]
[1731769268462,3.15595,3168.7,3168.0,3.78561771]
[1731769268790,3.70584,3168.8,3168.0,0.62913771]
[1731769268935,0.55,3169.0,3168.2,3.15636]
[1731769269279,0.55,3169.0,3168.3,0.315636]
[1731769269834,0.55,3168.8,3168.4,3.15616]
[1731769270135,0.55,3168.8,3168.3,0.315636]
[1731769270731,3.15589,3168.7,3168.3,0.315636]
[1731769271077,0.55,3168.6,3168.0,3.15655]
[1731769271932,0.55,3168.6,3168.1,3.15644]
[1731769272128,0.55,3168.8,3168.1,3.15644]
[1731769272333,0.55,3168.8,3168.2,3.471984]
[1731769272565,3.15571,3168.9,3168.3,3.15623]
[1731769272769,0.55,3168.8,3168.3,3.15623]
[1731769273074,3.70557,3169.0,3168.2,0.315644]
[1731769273248,3.70557,3169.0,3168.3,3.5034584]
[1731769273448,0.55,3169.0,3168.3,3.5034584]
[1731769273759,0.55,3168.6,3168.3,0.3472084]
[1731769274246,0.55,3168.8,3168.2,3.15634]
[1731769274832,3.70578,3168.8,3168.2,3.15634]
[1731769276788,3.15606,3168.6,3167.9,38.7730977]
[1731769276938,0.55,3168.5,3168.2,3.15634]
[1731769277132,0.55,3168.5,3168.1,3.15638]
[1731769277332,0.55,3168.5,3168.4,3.15616]
[1731769277756,3.15521,3169.4,3168.6,3.15589]
[1731769278085,3.70529,3169.3,3168.7,0.06311025]
[1731769278232,3.70529,3169.3,3168.7,0.38501027]
[1731769278834,3.15396,3170.7,3169.3,3.15526]
[1731769279045,0.01,3171.1,3169.0,3.03110125]
[1731769279291,0.01,3171.1,3169.1,35.30311013]
[1731769279292,0.316345,3171.0,3169.1,35.30311013]
[1731769279589,3.15468,3169.9,3169.1,35.30311013]
[1731769279742,3.15447,3170.1,3169.1,35.30311013]
[1731769279942,0.55,3169.9,3169.3,3.15522]
[1731769280175,0.55,3169.9,3169.8,0.62436309]
[1731769281308,3.70449,3170.1,3169.8,0.62436309]
[1731769281444,0.55,3169.9,3169.8,0.62436309]
[1731769282691,0.55,3169.8,3169.5,35.0]
[1731769282907,0.55,3169.8,3169.5,38.14099947]
[1731769283203,0.55,3169.6,3169.5,3.14099947]
[1731769283385,0.55,3169.6,3169.3,0.62905417]
[1731769283606,0.55,3169.6,3169.1,0.30311013]
[1731769283607,3.70498,3169.6,3169.1,38.30311013]
[1731769283753,3.70498,3169.6,3169.2,3.14099947]
[1731769284493,0.55,3169.1,3168.7,0.32190002]
[1731769284695,3.70548,3169.1,3168.7,0.62905417]
[1731769285008,3.70548,3169.1,3168.5,0.62293644]
[1731769285009,0.55,3168.8,3168.5,0.62293644]
[1731769285297,0.55,3168.9,3168.4,3.15613]
[1731769285500,0.55,3168.9,3168.5,0.631238]
[1731769285652,3.17436,3170.3,3168.5,0.631238]
[1731769285653,0.55,3169.2,3168.7,3.15579]
[1731769285854,0.55,3169.4,3168.7,3.15579]
[1731769286155,3.70518,3169.4,3168.8,0.63748518]
[1731769286360,0.55,3169.1,3168.6,0.06311176]
[1731769286682,0.55,3169.1,3168.5,3.787278]
[1731769286990,0.55,3169.2,3168.6,0.06311032]
[1731769287197,3.15547,3169.1,3168.7,0.3153]
[1731769287403,0.55,3169.2,3168.7,0.3153]
[1731769287404,0.55,3169.0,3168.7,0.3153]
[1731769287567,3.1551,3169.5,3168.9,0.3153]
[1731769287568,0.55,3169.2,3168.9,0.3153]
[1731769287754,0.55,3169.4,3168.9,0.3153]
[1731769287951,0.55,3169.3,3169.0,0.6977422]
[1731769288155,0.55,3169.3,3169.0,0.3153]
[1731769288375,0.55,3169.5,3168.9,3.15565]
[1731769288804,0.55,3169.5,3168.7,6.47111]
[1731769289012,0.55,3169.5,3168.8,0.962706]
[1731769289213,3.15538,3169.2,3168.5,0.631238]
[1731769289430,0.55,3168.9,3168.6,35.0]
[1731769289914,3.15553,3169.1,3168.6,35.0]
[1731769290227,3.03110125,3170.2,3168.6,35.0]
[1731769290228,3.70558,3169.0,3168.6,35.0]
[1731769290517,0.55,3169.1,3168.7,3.2041104]
[1731769290869,0.55,3169.1,3168.7,3.14099947]
[1731769291080,0.55,3169.1,3168.7,3.20410986]
[1731769291381,0.55,3169.3,3168.8,6.29675947]
[1731769291695,0.55,3169.3,3168.9,35.0]
[1731769292066,3.15549,3169.1,3168.9,35.0]
[1731769292312,0.55,3169.0,3168.9,35.0]
[1731769292489,0.55,3169.2,3168.9,35.0]
[1731769292668,0.55,3169.4,3169.0,3.14099947]
[1731769293014,3.70497,3169.6,3169.1,0.3784058]
[1731769293304,0.55,3169.7,3169.1,3.5338658]
[1731769293518,3.15457,3170.0,3169.3,3.15526]
[1731769293663,3.15457,3170.0,3169.4,0.630826]
[1731769293863,3.15465,3170.0,3169.4,0.630826]
[1731769294106,3.1544,3170.2,3169.5,3.15505]
[1731769294264,0.01566678,3170.4,3169.5,3.15505]
[1731769294467,3.15445,3170.2,3169.5,3.15505]
[1731769294668,3.15448,3170.1,3169.6,0.3785876]
[1731769295180,3.15448,3170.1,3169.4,3.785986]
[1731769295374,3.15429,3170.3,3169.7,3.15486]
[1731769295602,3.15429,3170.3,3169.8,0.06308903]
[1731769295810,0.01566678,3170.4,3169.8,0.06308903]
[1731769295994,3.16985678,3170.4,3169.8,0.06308903]
[1731769296201,3.15445,3170.2,3169.7,0.95593425]
[1731769296511,3.16985678,3170.4,3169.8,0.39559343]
[1731769296928,3.1543,3170.3,3169.8,0.39559343]
[1731769297214,3.70443,3170.2,3169.8,0.39559343]
[1731769297428,0.55,3170.2,3169.8,0.39559343]
[1731769297710,0.01566678,3170.4,3169.8,0.39559343]
[1731769297711,0.56566678,3170.4,3169.8,3.55029343]
[1731769297954,0.56566678,3170.4,3169.9,0.41909277]
[1731769299316,0.56566678,3170.4,3169.8,0.39559343]
[1731769299317,0.55,3170.0,3169.8,0.39559343]
[1731769299731,0.55,3170.0,3169.9,3.15467]
[1731769299934,0.55,3170.0,3169.8,0.39559343]
[1731769300135,0.55,3170.3,3169.8,0.39559343]
[1731769300448,0.55,3170.3,3169.5,3.15505]
[1731769300616,0.55,3170.0,3169.6,0.1]
[1731769300824,3.70457,3170.0,3169.6,0.1]
[1731769301423,0.55,3170.1,3169.6,0.1]
[1731769301752,3.7044,3170.2,3169.7,0.3880323]
[1731769302105,0.55,3170.2,3169.7,0.3880323]
[1731769302348,0.55,3170.3,3169.7,3.5429023]
[1731769302917,0.55,3170.3,3169.8,3.15474]
[1731769303141,3.70434,3170.3,3169.9,0.66976423]
[1731769303445,3.70434,3170.3,3169.7,0.3880323]
[1731769303446,0.55,3170.0,3169.7,0.3880323]
[1731769303651,0.55,3170.0,3169.5,0.62533304]
[1731769304212,3.70459,3170.0,3169.5,0.62533304]
[1731769304609,0.55,3170.2,3169.5,0.62533304]
[1731769304810,0.55,3170.2,3169.6,0.7411319]
[1731769305010,0.55,3170.2,3169.9,3.15467]
[1731769305249,0.56566678,3170.4,3169.9,3.15467]
[1731769305474,3.71984678,3170.4,3169.7,3.15483]
[1731769306110,3.71984678,3170.4,3169.8,0.01]
[1731769306308,3.71984678,3170.4,3169.9,0.316483]
[1731769306647,3.15429,3170.3,3169.9,0.316483]
[1731769306825,0.55,3170.2,3169.8,0.01]
[1731769307872,0.55,3170.0,3169.7,0.3153]
[1731769308228,0.55,3169.8,3169.6,0.7411319]
[1731769308561,0.55,3169.8,3169.7,0.01]
[1731769308710,3.70463,3170.0,3169.7,0.01]
[1731769308914,3.15468,3169.9,3169.5,0.62533304]
[1731769309143,0.55,3169.8,3169.5,0.62533304]
[1731769309350,0.55,3169.8,3169.6,0.01]
[1731769310012,0.55,3169.8,3169.5,0.94063304]
[1731769310564,0.55,3169.8,3169.5,3.14099947]
[1731769310565,3.70504,3169.6,3169.5,3.14099947]
[1731769310749,0.55,3169.4,3169.1,0.3153]
[1731769311064,3.15527,3169.3,3169.2,0.01]
[1731769311215,3.70527,3169.3,3169.2,0.01]
[1731769311416,0.55,3169.9,3169.2,0.01]
[1731769311656,3.15467,3169.9,3169.3,35.0]
[1731769311825,3.15438,3170.2,3169.3,35.01]
[1731769311826,3.15455,3170.1,3169.3,35.01]
[1731769312030,3.15438,3170.2,3169.5,3.47029]
[1731769312225,3.16985678,3170.4,3169.6,3.15496]
[1731769312434,3.15429,3170.3,3169.6,3.15496]
[1731769312610,3.16985678,3170.4,3169.7,35.0]
[1731769312611,0.01566678,3170.4,3169.7,35.0]
[1731769312813,0.01566678,3170.4,3169.9,3.15466]
[1731769313041,0.01566678,3170.4,3170.0,3.15453]
[1731769313258,0.01566678,3170.4,3169.9,3.46996]
[1731769314468,0.01566678,3170.4,3170.1,3.15447]
[1731769314818,0.01566678,3170.4,3169.9,3.46996]
[1731769315020,0.01566678,3170.4,3170.0,3.81564595]
[1731769315614,0.55,3170.2,3169.8,3.14099947]
[1731769315861,3.70464,3170.0,3169.9,0.08]
[1731769316229,3.70457,3170.0,3169.9,0.08]
[1731769316522,3.70457,3170.0,3169.6,0.3153]
[1731769316820,3.70457,3170.0,3169.4,3.15516]
[1731769316821,0.55,3169.9,3169.5,0.3153]
[1731769317023,0.55,3169.9,3169.6,0.347046]
[1731769317661,3.1548,3169.8,3169.4,0.62282994]
[1731769317862,0.55,3169.7,3169.4,0.62282994]
[1731769318081,3.70487,3169.7,3169.4,0.62282994]
[1731769318224,0.55,3169.7,3169.3,0.06309773]
[1731769318549,0.55,3169.1,3168.2,3.15631]
[1731769318748,0.55,3169.1,3168.3,35.61874113]
[1731769319262,3.15544,3169.2,3168.6,0.62819101]
[1731769319263,0.55,3168.9,3168.6,0.62819101]
[1731769319832,0.55,3169.1,3168.6,0.62819101]
[1731769320056,0.55,3169.2,3168.7,0.06311082]
[1731769320337,0.55,3169.2,3168.6,0.62819101]
[1731769320338,3.15537,3169.2,3168.6,0.62819101]
[1731769320528,3.70555,3169.1,3168.7,0.3784181]
[1731769320723,3.70555,3169.1,3168.6,0.62819101]
[1731769320724,3.70553,3169.1,3168.6,0.62819101]
[1731769320963,0.55,3169.1,3168.7,0.06311347]
[1731769321174,0.55,3169.3,3168.7,0.06311347]
[1731769321363,3.1553,3169.3,3168.8,0.38471845]
[1731769321675,3.1553,3169.3,3168.9,0.06310668]
[1731769321676,0.55,3169.2,3168.9,0.06310668]
[1731769321838,0.55,3169.2,3168.6,0.62819101]
[1731769321839,3.70538,3169.2,3168.6,0.62819101]
[1731769322043,3.70538,3169.2,3168.7,0.3784241]
[1731769322343,0.55,3169.2,3168.7,0.3784241]
[1731769322542,0.55,3169.1,3168.6,0.62819101]
[1731769323166,0.55,3169.1,3168.7,0.06310787]
[1731769323328,0.55,3169.1,3168.6,3.78414101]
[1731769323531,0.55,3169.1,3168.6,0.62819101]
[1731769323732,3.15573,3168.9,3168.6,1.00662011]
[1731769323963,3.70579,3168.8,3168.6,0.62819101]
[1731769324270,3.15646,3168.1,3168.0,1.11460297]
[1731769324569,3.15646,3168.1,3168.0,0.49381174]
[1731769324570,3.70646,3168.1,3168.0,0.49381174]
[1731769324729,3.15678,3167.8,3167.6,0.62741485]
[1731769324930,0.55,3167.7,3167.6,0.62741485]
[1731769325277,3.70686,3167.7,3167.4,35.0]
[1731769325425,3.15763,3167.0,3166.8,0.62640554]
[1731769325629,3.15782,3166.8,3166.4,0.49404551]
[1731769325867,0.55,3166.7,3166.5,35.0]
[1731769326237,3.15705,3167.6,3166.8,3.15774]
[1731769326446,3.03110125,3168.1,3166.4,3.52514676]
[1731769326447,3.15656,3168.0,3167.0,3.15749]
[1731769326641,3.03110125,3168.4,3166.9,0.06314308]
[1731769326642,3.15666,3167.9,3167.1,3.22058139]
[1731769326828,3.15647,3168.1,3167.2,0.32205814]
[1731769327029,3.15627,3168.3,3167.5,3.15701]
[1731769327230,3.15627,3168.3,3167.6,0.06313284]
[1731769327453,3.15627,3168.3,3167.6,3.22006284]
[1731769327776,3.15627,3168.3,3167.7,0.32200628]
[1731769327976,3.03110125,3169.0,3167.8,0.06312778]
[1731769328135,3.15576,3168.8,3167.8,0.06312778]
[1731769328335,3.156,3168.6,3167.8,0.06312778]
[1731769328538,3.15559,3169.0,3168.0,3.15648]
[1731769328898,3.15559,3169.0,3168.2,3.15628]
[1731769329042,3.1555,3169.1,3168.3,3.15619]
[1731769329237,3.03110125,3169.3,3168.3,0.631264]
[1731769329436,3.15553,3169.1,3168.3,3.787484]
[1731769329664,3.15553,3169.1,3168.4,3.15615]
[1731769329973,3.15564,3169.0,3168.1,3.15637]
[1731769330280,0.55,3168.8,3168.1,3.15637]
[1731769330631,3.70656,3168.0,3167.7,0.32200628]
[1731769330837,0.55,3167.9,3167.5,0.61843047]
[1731769331035,3.70667,3167.9,3167.5,0.61843047]
[1731769331285,3.70667,3167.9,3166.4,3.52514676]
[1731769331286,0.55,3167.9,3166.4,3.52514676]
[1731769331611,3.03110125,3168.4,3166.6,3.15789]
[1731769331612,3.70727,3167.3,3166.6,3.15789]
[1731769331743,3.15764,3167.0,3166.6,0.68100655]
[1731769331945,0.55,3167.0,3166.5,0.61868291]
[1731769332262,3.15754,3167.1,3166.5,0.61868291]
[1731769332263,0.55,3166.8,3166.5,0.61868291]
[1731769332459,3.70776,3166.8,3166.4,0.49404551]
[1731769332769,3.15692,3167.7,3166.4,0.49404551]
[1731769332770,0.55,3166.9,3166.4,0.49404551]
[1731769332976,3.70772,3166.9,3166.4,0.49404551]
[1731769333277,0.55,3166.5,3166.4,0.49404551]
[1731769333448,0.55,3166.5,3165.3,3.16919]
[1731769333650,0.55,3166.6,3166.3,0.49417607]
[1731769333852,3.70796,3166.6,3165.9,3.15856]
[1731769334095,0.55,3166.7,3166.1,3.15845]
[1731769334252,0.55,3166.7,3166.2,0.87319686]
[1731769334580,0.55,3166.4,3166.2,0.81003776]
[1731769334783,0.55,3166.4,3166.2,0.49419276]
[1731769335074,6.84132098,3167.5,3166.2,0.49419276]
[1731769335075,0.55,3166.6,3166.2,0.49419276]
[1731769335284,0.55,3166.5,3166.2,0.49419276]
[1731769335461,3.15814,3166.5,3166.2,0.49419276]
[1731769335635,0.55,3166.4,3166.2,0.49419276]
[1731769335837,0.55,3166.4,3165.6,0.01]
[1731769336085,0.55,3166.6,3165.6,0.01]
[1731769336237,0.55,3166.1,3165.6,0.01]
[1731769336432,0.55,3166.1,3165.6,0.06317066]
[1731769336885,3.15847,3166.1,3165.5,3.15905]
[1731769337037,3.70826,3166.3,3165.6,3.58736028]
[1731769337473,3.15843,3166.2,3165.6,0.42850028]
[1731769337881,0.55,3166.1,3165.6,0.42850028]
[1731769338377,0.55,3166.4,3165.8,3.15873]
[1731769338580,0.55,3166.4,3165.9,0.315873]
[1731769338789,3.70798,3166.6,3165.9,0.315873]
[1731769339361,0.55,3166.6,3166.0,0.0631629]
[1731769339544,3.15767,3166.9,3166.0,0.0631629]
[1731769339773,3.15766,3166.9,3166.1,3.15838]
[1731769339992,3.15712,3167.5,3166.2,0.06315694]
[1731769340290,3.15712,3167.5,3166.2,0.32216569]
[1731769340291,3.5054012,3167.5,3166.2,0.32216569]
[1731769340585,3.15788,3166.7,3166.3,0.06315695]
[1731769341085,3.15816,3166.4,3165.8,0.00867525]
[1731769341299,0.55,3165.9,3165.8,0.00867525]
[1731769341843,3.70865,3165.9,3165.8,0.00867525]
[1731769342443,3.15847,3166.1,3165.8,0.00867525]
[1731769342684,3.15865,3165.9,3165.8,0.00867525]
[1731769342863,3.15849,3166.1,3165.8,0.00867525]
[1731769343051,3.15856,3166.0,3165.8,0.00867525]
[1731769343986,3.15865,3165.9,3165.8,0.00867525]
[1731769345244,3.15846,3166.1,3165.8,0.00867525]
[1731769345468,3.15826,3166.3,3165.8,0.00867525]
[1731769345684,3.15826,3166.3,3165.8,0.32543678]
[1731769346156,3.15837,3166.2,3165.8,0.32543678]
[1731769346367,3.15812,3166.5,3165.8,0.3886077]
[1731769346700,3.15812,3166.5,3165.8,3.5473577]
[1731769346901,3.15788,3166.7,3165.9,0.35473577]
[1731769347203,3.15788,3166.7,3165.8,0.3886077]
[1731769347204,3.15757,3167.0,3166.3,3.15824]
[1731769347552,3.15721,3167.4,3166.4,0.06315501]
[1731769347752,3.15705,3167.6,3166.5,3.15806]
[1731769348005,3.157,3167.6,3166.0,3.62949912]
[1731769348300,3.157,3167.6,3166.9,3.15764]
[1731769349159,3.15708,3167.5,3166.9,3.15764]
[1731769349385,3.15688,3167.7,3167.0,3.1575]
[1731769349700,3.15658,3168.0,3167.1,3.15739]
[1731769349902,3.15658,3168.0,3166.9,3.15764]
[1731769349903,0.6830781,3168.0,3167.0,0.315764]
[1731769350100,3.67420098,3168.2,3167.3,3.15724]
[1731769350101,3.15644,3168.2,3167.3,3.15724]
[1731769350261,3.15633,3168.3,3167.6,3.15695]
[1731769350451,3.67420098,3168.7,3167.0,3.15756]
[1731769350656,3.15689,3167.7,3167.1,3.0]
[1731769350858,3.15668,3167.9,3167.1,0.615756]
[1731769351053,3.15717,3167.4,3167.1,0.615756]
[1731769351280,3.15683,3167.8,3166.5,6.15801]
[1731769351482,3.15734,3167.3,3166.3,3.15825]
[1731769351666,3.15734,3167.3,3166.6,3.15791]
[1731769351868,3.15737,3167.2,3166.7,0.315791]
[1731769352161,6.83091098,3167.9,3166.7,0.315791]
[1731769352460,3.15684,3167.8,3166.9,3.15766]
[1731769352675,3.67420098,3168.3,3167.0,0.06314006]
[1731769352900,0.01,3168.6,3167.3,3.15723]
[1731769352901,3.15658,3168.0,3167.3,3.15723]
[1731769353070,3.15636,3168.2,3167.4,3.53600768]
[1731769353404,3.15647,3168.1,3167.4,3.53600768]
[1731769353611,3.15611,3168.5,3167.5,3.15706]
[1731769353898,3.15611,3168.5,3167.6,0.41672175]
[1731769353899,3.15627,3168.3,3167.6,0.41672175]
[1731769354067,3.15627,3168.3,3167.5,3.15706]
[1731769354336,3.15627,3168.3,3167.1,3.15745]
[1731769354337,3.15679,3167.8,3167.1,3.15745]
[1731769354548,3.67420098,3168.3,3167.2,0.06313895]
[1731769354872,3.67420098,3168.3,3167.2,0.06313896]
[1731769354873,3.15662,3168.0,3167.2,0.06313896]
[1731769355062,3.15662,3168.0,3167.3,3.15719]
[1731769355568,3.15662,3168.0,3167.2,0.06313896]
[1731769355569,3.15662,3168.0,3167.2,3.22047896]
[1731769355862,3.15667,3167.9,3167.2,3.22046896]
[1731769356165,3.15667,3167.9,3167.3,0.3220479]
[1731769356370,3.15686,3167.7,3167.3,0.3220479]
[1731769356674,0.55,3168.2,3167.3,0.3220479]
[1731769356675,3.15677,3167.8,3167.3,0.3220479]
[1731769357025,3.15689,3167.7,3167.3,0.3220479]
[1731769357266,3.15689,3167.7,3167.1,0.06313897]
[1731769357569,3.15696,3167.6,3167.0,3.64130685]
[1731769357772,0.55,3168.2,3166.6,0.3153]
[1731769357773,0.55,3167.7,3166.6,3.15795]
[1731769357958,3.15756,3167.0,3166.4,3.79561648]
[1731769358270,3.15756,3167.0,3166.2,0.63474229]
[1731769358436,3.15786,3166.7,3165.9,3.15865]
[1731769358860,3.15786,3166.7,3166.0,3.15853]
[1731769359033,3.15768,3166.9,3166.1,3.5374615]
[1731769359229,3.15768,3166.9,3166.1,0.3790115]
[1731769359431,3.15788,3166.7,3166.1,0.3790115]
[1731769359726,3.15768,3166.9,3166.1,0.3790115]
[1731769359727,3.15821,3166.4,3166.1,0.315853]
[1731769359957,3.15827,3166.3,3165.8,0.00867525]
[1731769360272,3.15783,3166.8,3165.8,0.00867525]
[1731769360483,3.15854,3166.1,3165.8,0.00867525]
[1731769360626,3.15863,3166.0,3165.8,0.00867525]
[1731769360828,3.15834,3166.3,3165.8,0.00867525]
[1731769361146,3.15847,3166.1,3165.8,0.00867525]
[1731769361522,3.15863,3166.0,3165.8,0.00867525]
[1731769362001,3.15836,3166.2,3165.8,0.00867525]
[1731769362154,3.5271701,3166.9,3165.8,0.00867525]
[1731769362354,3.15847,3166.1,3165.8,0.00867525]
[1731769362811,3.15776,3166.8,3165.8,0.00867525]
[1731769363121,3.15865,3165.9,3165.8,0.00867525]
[1731769363593,4.03791899,3166.7,3165.8,0.00867525]
[1731769363594,0.55,3166.6,3165.8,0.00867525]
[1731769363807,3.1585,3166.1,3165.8,0.00867525]
[1731769364192,3.15826,3166.3,3165.8,0.00867525]
[1731769364362,0.35371801,3166.7,3165.8,0.00867525]
[1731769364363,3.15856,3166.0,3165.8,0.00867525]
[1731769366020,0.3894201,3166.9,3165.8,0.00867525]
[1731769366021,0.3694201,3166.9,3165.8,0.00867525]
[1731769366159,0.55,3167.2,3165.8,3.16737525]
[1731769366160,3.15746,3167.1,3165.8,3.16737525]
[1731769366362,3.15746,3167.1,3165.9,0.31673753]
[1731769366363,3.15824,3166.4,3165.9,0.31673753]
[1731769366696,3.15824,3166.4,3165.8,0.00867525]
[1731769367258,3.15826,3166.3,3165.8,0.00867525]
[1731769367463,0.56,3167.0,3165.8,0.00867525]
[1731769367768,3.15865,3165.9,3165.8,0.00867525]
[1731769368582,3.15865,3165.9,3165.8,0.00647379]
[1731769369433,3.790364,3165.9,3165.8,0.00647379]
[1731769369595,4.340364,3165.9,3165.8,0.00647379]
[1731769370788,3.790364,3165.9,3165.8,0.00647379]
[1731769372435,11.03456498,3165.9,3165.8,3.79e-06]
[1731769375400,11.52449229,3165.9,3165.8,3.79e-06]
[1731769377212,7.46456498,3165.9,3165.8,3.79e-06]
[1731769377520,6.83285098,3165.9,3165.8,3.79e-06]
[1731769378150,6.84285098,3165.9,3165.8,3.79e-06]
[1731769378508,9.84285098,3165.9,3165.8,3.79e-06]
[1731769378923,10.39285098,3165.9,3165.8,3.79e-06]
[1731769380528,6.84285098,3165.9,3165.8,3.79e-06]
[1731769380767,7.85398508,3165.9,3165.8,3.79e-06]
[1731769381061,7.84398508,3165.9,3165.8,3.79e-06]